bitfinex-derivatives/quotes_BTCF0:USTF0_20250313
["timestamp","ask_amount","ask_price","bid_price","bid_amount"]
[1741883941526,0.1953,81167.0,81164.0,0.00018477]
[1741883941826,0.1232279,81165.0,81164.0,0.00018477]
[1741883942224,0.1232279,81165.0,81164.0,0.12341427]
[1741883942729,0.1232279,81165.0,81164.0,0.00018477]
[1741883943033,0.1232279,81165.0,81164.0,0.13571398]
[1741883943418,0.1232279,81165.0,81164.0,0.33001398]
[1741883943936,0.1232198,81172.0,81171.0,0.0616087]
[1741883944129,0.3226145,81175.0,81174.0,0.1232143]
[1741883944337,0.1018,81175.0,81174.0,0.13551401]
[1741883944633,0.12338678,81181.0,81180.0,0.1232052]
[1741883944819,0.12338678,81181.0,81180.0,0.13550491]
[1741883945225,0.12338678,81181.0,81180.0,0.14927277]
[1741883945433,0.00018308,81181.0,81180.0,0.14927277]
[1741883945818,0.12338678,81181.0,81180.0,0.14927277]
[1741883947130,0.00184835,81198.0,81180.0,0.02606757]
[1741883947433,0.1847967,81189.0,81188.0,0.1847785]
[1741883947627,0.0615983,81189.0,81188.0,0.19707821]
[1741883948022,0.0994,81192.0,81191.0,0.1231885]
[1741883948225,0.14228,81211.0,81197.0,0.1231794]
[1741883948425,0.0615763,81215.0,81197.0,0.1231794]
[1741883948426,0.12502625,81198.0,81197.0,0.13547842]
[1741883948636,0.00184835,81198.0,81197.0,0.13547842]
[1741883948833,0.1,81200.0,81199.0,0.1231763]
[1741883948834,0.08937274,81200.0,81199.0,0.1231763]
[1741883949131,0.08937274,81200.0,81199.0,0.18920535]
[1741883949522,0.08937274,81200.0,81199.0,0.15920535]
[1741883949738,0.08937274,81200.0,81199.0,0.28236185]
[1741883950032,0.08937274,81200.0,81199.0,0.49229954]
[1741883950231,0.3195406,81223.0,81222.0,0.1231415]
[1741883950434,0.3195406,81223.0,81222.0,0.01226861]
[1741883950630,0.1022,81223.0,81222.0,0.01226861]
[1741883950826,0.2253399,81223.0,81222.0,0.13541011]
[1741883951336,0.00934762,81234.0,81231.0,0.1231278]
[1741883951633,0.12497388,81232.0,81231.0,0.04638828]
[1741883951829,0.12497388,81232.0,81231.0,0.02616875]
[1741883952229,0.22717388,81232.0,81231.0,0.14929655]
[1741883952533,0.22717388,81232.0,81231.0,0.01226861]
[1741883953222,0.22717388,81232.0,81231.0,0.23609641]
[1741883953537,0.1231179,81238.0,81237.0,0.1231172]
[1741883953729,0.1231179,81238.0,81237.0,0.13538581]
[1741883953921,0.1231179,81238.0,81237.0,0.01226861]
[1741883954126,0.1231179,81238.0,81237.0,0.13576443]
[1741883954527,0.2182179,81238.0,81237.0,0.01264573]
[1741883954722,0.1847125,81224.0,81221.0,0.0615709]
[1741883954922,0.1847125,81224.0,81222.0,0.03286794]
[1741883954923,0.1231399,81223.0,81222.0,0.03286794]
[1741883955122,0.2182399,81223.0,81222.0,0.01264141]
[1741883955526,0.2182399,81223.0,81222.0,0.13578291]
[1741883955729,0.2182399,81223.0,81222.0,0.13566266]
[1741883956333,0.2182399,81223.0,81222.0,0.01252116]
[1741883956537,0.1231521,81215.0,81214.0,0.00018477]
[1741883956739,0.1231521,81215.0,81214.0,0.01263474]
[1741883956944,0.1231521,81215.0,81214.0,0.13578834]
[1741883957231,0.1231521,81215.0,81214.0,0.23678834]
[1741883959133,0.2644751,81217.0,81214.0,0.23678834]
[1741883959134,0.1647751,81217.0,81216.0,0.1231506]
[1741883959336,0.1647751,81217.0,81216.0,0.13560057]
[1741883959538,0.2658751,81217.0,81216.0,0.01244997]
[1741883959839,0.1231521,81215.0,81214.0,0.00018477]
[1741883961439,0.1231521,81215.0,81214.0,0.01270073]
[1741883961935,0.1231521,81215.0,81214.0,0.13584989]
[1741883962139,0.1231521,81215.0,81214.0,0.00018477]
[1741883962341,0.0615739,81218.0,81214.0,0.00018477]
[1741883962639,0.1231521,81216.0,81215.0,0.1231508]
[1741883963236,0.0615727,81223.0,81222.0,0.1231384]
[1741883963436,0.0615727,81223.0,81222.0,0.0122679]
[1741883963635,0.1231521,81215.0,81214.0,0.10098477]
[1741883963837,0.1231521,81215.0,81214.0,0.01245263]
[1741883964045,0.1231521,81215.0,81214.0,0.01253098]
[1741883964245,0.1231521,81215.0,81214.0,0.00018477]
[1741883965746,0.1231521,81215.0,81214.0,0.0124902]
[1741883965940,0.1231521,81215.0,81214.0,0.00018477]
[1741883966140,0.1231521,81215.0,81214.0,0.24018477]
[1741883968440,0.1231521,81215.0,81214.0,0.17276167]
[1741883968641,0.1231763,81199.0,81198.0,0.0976]
[1741883968845,0.1422,81205.0,81191.0,0.01368732]
[1741883969046,0.1231854,81193.0,81192.0,0.23315354]
[1741883969249,0.1231854,81193.0,81192.0,0.23313313]
[1741883970257,0.1015,81193.0,81192.0,0.23313313]
[1741883970441,0.1015,81193.0,81192.0,0.35943313]
[1741883970650,0.1015,81193.0,81192.0,0.39294756]
[1741883970951,0.2246854,81193.0,81192.0,0.36294756]
[1741883971139,0.2246854,81193.0,81192.0,0.36297232]
[1741883971344,0.1015,81193.0,81192.0,0.36297232]
[1741883971941,0.1596886,81200.0,81199.0,0.1231763]
[1741883972144,0.2530886,81200.0,81199.0,0.13555031]
[1741883972349,0.2530886,81200.0,81199.0,0.15552529]
[1741883972757,0.2530886,81200.0,81199.0,0.35212529]
[1741883973051,0.0934,81200.0,81199.0,0.33349053]
[1741883973352,0.00018439,81201.0,81200.0,0.1231748]
[1741883973652,0.1987,81215.0,81214.0,0.1231536]
[1741883973852,0.061571,81222.0,81214.0,0.03242271]
[1741883974050,0.1231445,81220.0,81219.0,0.0615723]
[1741883974249,0.1231445,81220.0,81219.0,0.19060094]
[1741883974753,0.1231445,81220.0,81219.0,0.04634287]
[1741883974954,0.1231445,81220.0,81219.0,0.02619399]
[1741883974955,0.23130076,81220.0,81219.0,0.02619399]
[1741883975153,0.23130076,81220.0,81219.0,0.14933999]
[1741883975557,0.23130076,81220.0,81219.0,0.1695127]
[1741883975758,0.23130076,81220.0,81219.0,0.1427667]
[1741883976059,0.23130076,81220.0,81219.0,0.2659127]
[1741883976355,0.23130076,81220.0,81219.0,0.24573999]
[1741883976756,0.23130076,81220.0,81219.0,0.26557464]
[1741883976757,0.0969,81220.0,81219.0,0.26557464]
[1741883976949,0.2200445,81220.0,81219.0,0.26557464]
[1741883977155,0.0969,81220.0,81219.0,0.26557464]
[1741883977354,0.0615693,81224.0,81219.0,0.14242864]
[1741883977552,0.123142,81222.0,81221.0,0.1846139]
[1741883977748,0.1009,81223.0,81222.0,0.1231415]
[1741883977948,0.1009,81223.0,81222.0,0.01247976]
[1741883978156,0.2240399,81223.0,81222.0,0.04595948]
[1741883978758,0.2240399,81223.0,81222.0,0.16910098]
[1741883978961,0.2240399,81223.0,81222.0,0.14933549]
[1741883979158,0.07300554,81226.0,81225.0,0.1231369]
[1741883979361,0.1009,81227.0,81226.0,0.1231354]
[1741883979654,0.12495693,81244.0,81243.0,0.1231096]
[1741883979860,0.12495693,81244.0,81243.0,0.33228936]
[1741883980055,0.19034733,81244.0,81243.0,0.33228936]
[1741883980364,0.09464733,81244.0,81243.0,0.35239808]
[1741883980654,0.21775543,81244.0,81243.0,0.35248085]
[1741883980854,0.21775543,81244.0,81243.0,0.36619442]
[1741883981046,0.12495543,81244.0,81243.0,0.36619442]
[1741883981247,0.00064,81260.0,81243.0,0.25308482]
[1741883981447,0.0975,81268.0,81250.0,0.17722236]
[1741883981651,0.0928,81267.0,81252.0,0.0615474]
[1741883981859,0.1230796,81265.0,81264.0,0.1230749]
[1741883982156,0.15157745,81277.0,81264.0,0.16945972]
[1741883982157,0.14243225,81277.0,81264.0,0.16945972]
[1741883982457,0.1230748,81266.0,81265.0,0.03239791]
[1741883982762,0.1230748,81266.0,81265.0,0.01256551]
[1741883982955,0.1230748,81266.0,81265.0,0.02627974]
[1741883983352,0.3216748,81266.0,81265.0,4e-08]
[1741883983755,0.1230869,81258.0,81257.0,0.00018465]
[1741883983951,0.1230869,81258.0,81229.0,0.061565]
[1741883983952,0.1231278,81231.0,81230.0,0.36309614]
[1741883984154,0.1231278,81231.0,81230.0,0.3940272]
[1741883984661,0.1231278,81231.0,81230.0,0.28251202]
[1741883985156,0.061563,81233.0,81232.0,0.1231263]
[1741883985355,0.061563,81233.0,81232.0,0.16308806]
[1741883985762,0.061563,81233.0,81232.0,0.25698806]
[1741883986358,0.061563,81233.0,81232.0,0.2370263]
[1741883986860,0.061563,81233.0,81232.0,0.0939]
[1741883987447,0.27357136,81233.0,81232.0,0.0939]
[1741883987746,0.27357136,81233.0,81225.0,0.38092135]
[1741883987747,0.27357136,81233.0,81225.0,0.38020135]
[1741883987956,0.1846992,81228.0,81227.0,0.0939]
[1741883988358,0.3850992,81228.0,81227.0,0.2170339]
[1741883988557,0.3850992,81228.0,81227.0,0.0939]
[1741883989450,0.2619668,81228.0,81227.0,0.2170339]
[1741883990260,0.1634668,81228.0,81227.0,0.2170339]
[1741883990559,0.17722236,81260.0,81227.0,0.1139]
[1741883990755,0.1231215,81237.0,81236.0,0.1231172]
[1741883991061,0.1231215,81237.0,81226.0,0.0993]
[1741883991062,0.1231202,81236.0,81235.0,0.1902]
[1741883991458,0.0985,81238.0,81236.0,0.1231202]
[1741883991654,0.2216187,81238.0,81237.0,0.1231187]
[1741883991962,0.2216187,81238.0,81237.0,0.3230187]
[1741883992165,0.2216187,81238.0,81237.0,0.1999]
[1741883992752,0.3176187,81238.0,81237.0,0.1999]
[1741883992959,0.1231248,81233.0,81232.0,0.14212]
[1741883993656,0.1231324,81228.0,81225.0,0.0615684]
[1741883993961,0.1231354,81226.0,81225.0,0.0615684]
[1741883994162,0.1231325,81230.0,81229.0,0.1231293]
[1741883994359,0.1937,81238.0,81228.0,0.0615662]
[1741883994563,0.1231309,81230.0,81229.0,0.2207261]
[1741883994761,0.1231309,81230.0,81229.0,0.3169261]
[1741883995355,0.1231309,81230.0,81229.0,0.3292189]
[1741883995561,0.1231309,81230.0,81229.0,0.34286911]
[1741883995760,0.1231309,81230.0,81229.0,0.21974301]
[1741883995954,0.3136309,81230.0,81229.0,0.02594301]
[1741883996154,0.3136309,81230.0,81229.0,0.01365021]
[1741883996564,0.1231309,81229.0,81228.0,0.1895]
[1741883996757,0.1231309,81229.0,81228.0,0.20171729]
[1741883996956,0.1231309,81229.0,81228.0,0.32484969]
[1741883996957,0.3136309,81229.0,81228.0,0.32484969]
[1741883997257,0.14212,81241.0,81228.0,0.21529049]
[1741883997571,0.1231309,81229.0,81228.0,0.0135732]
[1741883997864,0.2652509,81229.0,81228.0,0.0135732]
[1741883998057,0.1231399,81223.0,81222.0,0.00018465]
[1741883998463,0.1231399,81223.0,81222.0,5e-08]
[1741883998761,0.99972911,81223.0,81222.0,5e-08]
[1741883999062,0.1231672,81205.0,81204.0,0.2922442]
[1741883999268,0.1231763,81199.0,81198.0,0.21924389]
[1741883999557,0.13469023,81199.0,81198.0,0.21924389]
[1741883999961,0.13469023,81199.0,81198.0,0.23173083]
[1741884000266,0.23429023,81199.0,81198.0,0.35491177]
[1741884000562,0.23429023,81199.0,81198.0,0.2456152]
[1741884000861,0.23429023,81199.0,81198.0,0.3687931]
[1741884001257,0.00076,81220.0,81198.0,0.23173387]
[1741884001463,0.14212,81219.0,81206.0,0.1231657]
[1741884001662,0.0615795,81211.0,81206.0,0.13593513]
[1741884001861,0.12334885,81207.0,81206.0,0.33613513]
[1741884002061,0.00018465,81207.0,81206.0,0.33613513]
[1741884002257,0.00018465,81207.0,81206.0,0.35656853]
[1741884002457,0.00018465,81207.0,81206.0,0.33613513]
[1741884002758,0.00018465,81207.0,81206.0,0.35009802]
[1741884002968,0.00018465,81207.0,81206.0,0.37999471]
[1741884003260,0.12334885,81207.0,81206.0,0.36999883]
[1741884003453,0.12334885,81207.0,81206.0,0.35009802]
[1741884003854,0.12334885,81207.0,81206.0,0.22693232]
[1741884004058,0.13512666,81207.0,81206.0,0.01396289]
[1741884004352,0.1231885,81191.0,81184.0,0.1231986]
[1741884004558,0.1231885,81191.0,81181.0,0.0616011]
[1741884004559,0.1231885,81191.0,81185.0,0.1944]
[1741884004759,0.1231885,81191.0,81186.0,0.123195]
[1741884004954,0.1231885,81191.0,81185.0,0.1944]
[1741884005458,0.13453885,81191.0,81185.0,0.3175968]
[1741884005766,0.13453885,81191.0,81175.0,0.06345374]
[1741884005767,0.1232021,81182.0,81181.0,0.2922442]
[1741884006264,0.1232021,81182.0,81181.0,0.4154479]
[1741884006565,0.1232021,81182.0,81181.0,0.2922442]
[1741884007058,0.1232021,81182.0,81181.0,0.2932442]
[1741884007462,0.1232112,81176.0,81175.0,0.36874734]
[1741884007656,0.1232431,81156.0,81154.0,0.11182705]
[1741884007850,0.1232431,81156.0,81155.0,0.2249417]
[1741884008254,0.1848476,81167.0,81166.0,0.1232234]
[1741884008457,0.1848476,81167.0,81162.0,0.0616161]
[1741884008458,0.1848396,81166.0,81165.0,0.1017]
[1741884008661,0.095,81166.0,81165.0,0.2249279]
[1741884008861,0.14244,81169.0,81168.0,0.1232234]
[1741884009371,0.2656619,81169.0,81168.0,0.1232234]
[1741884009758,0.2556619,81169.0,81168.0,0.1232234]
[1741884010155,0.2556619,81169.0,81168.0,0.1013]
[1741884010352,0.1232386,81158.0,81154.0,0.1232437]
[1741884010552,0.1232386,81158.0,81153.0,0.1232457]
[1741884010768,0.1232386,81158.0,81156.0,0.2464822]
[1741884010990,0.1232386,81158.0,81157.0,0.10148477]
[1741884011361,0.13514335,81158.0,81157.0,0.10148477]
[1741884011558,0.13514335,81158.0,81157.0,0.00018477]
[1741884011969,0.23194335,81158.0,81157.0,0.00018477]
[1741884012968,0.0968,81158.0,81157.0,0.00018477]
[1741884013155,0.00082477,81174.0,81173.0,0.1232158]
[1741884013357,0.14416855,81192.0,81182.0,0.0616001]
[1741884013358,0.0951,81191.0,81182.0,0.0616001]
[1741884013664,0.0615987,81186.0,81185.0,0.1231976]
[1741884013962,0.0615987,81186.0,81183.0,0.3190995]
[1741884013963,0.1231991,81184.0,81183.0,0.3190995]
[1741884014164,0.1848297,81172.0,81171.0,0.0616086]
[1741884014366,0.0616093,81172.0,81171.0,0.0616086]
[1741884014767,0.0616127,81167.0,81163.0,0.12341217]
[1741884014980,0.1232295,81164.0,81163.0,0.12341217]
[1741884015166,0.1232295,81164.0,81163.0,0.00018477]
[1741884015562,0.2665095,81164.0,81163.0,0.00018477]
[1741884015767,0.1232477,81152.0,81151.0,0.00014562]
[1741884016067,0.1848853,81149.0,81148.0,0.1232486]
[1741884016273,0.061627,81149.0,81148.0,0.1232486]
[1741884017376,0.061627,81149.0,81148.0,0.2250486]
[1741884018165,0.00018477,81157.0,81156.0,0.1232416]
[1741884018672,0.00018477,81157.0,81156.0,0.3220416]
[1741884018870,0.00018477,81157.0,81156.0,0.3720416]
[1741884019070,0.061602,81181.0,81156.0,0.3720416]
[1741884019071,0.14627491,81181.0,81175.0,0.1232128]
[1741884019376,0.1232097,81178.0,81177.0,0.1232097]
[1741884019567,0.1232097,81178.0,81177.0,0.097]
[1741884019772,0.1232355,81160.0,81159.0,0.19731833]
[1741884019974,0.1232333,81162.0,81161.0,0.1232325]
[1741884020160,0.1232333,81162.0,81161.0,0.2202325]
[1741884020360,0.1232333,81162.0,81161.0,0.23213251]
[1741884020566,0.1848435,81165.0,81164.0,0.1232295]
[1741884020763,0.00018477,81168.0,81164.0,0.01235626]
[1741884020963,0.00018477,81168.0,81167.0,0.1232249]
[1741884021171,0.00018477,81168.0,81165.0,0.097]
[1741884021474,0.1232264,81166.0,81165.0,0.097]
[1741884022170,0.1232264,81166.0,81165.0,0.2202279]
[1741884022171,0.2171264,81166.0,81165.0,0.2202279]
[1741884022376,0.2171264,81166.0,81165.0,0.097]
[1741884022580,0.1232295,81164.0,81163.0,0.2227307]
[1741884023073,0.2171295,81164.0,81163.0,0.2227307]
[1741884024079,0.3148295,81164.0,81163.0,0.2227307]
[1741884024479,0.3148295,81164.0,81163.0,0.0995]
[1741884024679,0.3148295,81164.0,81163.0,0.11189368]
[1741884024880,0.3148295,81164.0,81163.0,0.0995]
[1741884025172,0.3148295,81164.0,81163.0,0.3305318]
[1741884025378,0.2171295,81164.0,81163.0,0.3305318]
[1741884026778,0.00018477,81168.0,81167.0,0.1232249]
[1741884027075,0.12340817,81168.0,81167.0,0.1356257]
[1741884028078,0.12340817,81168.0,81167.0,0.0124008]
[1741884028278,0.12340817,81168.0,81167.0,0.1356257]
[1741884028480,0.00018477,81168.0,81167.0,0.1356257]
[1741884028681,0.12340817,81168.0,81167.0,0.1356257]
[1741884028877,0.00018477,81168.0,81167.0,0.1356257]
[1741884029575,0.12340817,81168.0,81167.0,0.1356257]
[1741884030484,0.00018477,81168.0,81167.0,0.1356257]
[1741884030879,0.12340817,81168.0,81167.0,0.1356257]
[1741884031075,0.00018477,81168.0,81167.0,0.1356257]
[1741884031377,0.0615997,81184.0,81178.0,0.1232082]
[1741884031576,0.14224,81189.0,81178.0,0.1232082]
[1741884031577,0.23288067,81179.0,81178.0,0.135609]
[1741884032383,0.23288067,81179.0,81178.0,0.331809]
[1741884032772,0.10967397,81179.0,81178.0,0.331809]
[1741884032978,0.23288067,81179.0,81178.0,0.331809]
[1741884033494,0.1232067,81179.0,81178.0,0.1062008]
[1741884033677,0.13465766,81179.0,81178.0,0.1062008]
[1741884033876,0.13465766,81179.0,81178.0,0.229409]
[1741884034077,0.1017,81179.0,81178.0,0.229909]
[1741884034277,0.2249067,81179.0,81178.0,0.324809]
[1741884034478,0.1017,81179.0,81178.0,0.324809]
[1741884034677,0.2222961,81186.0,81185.0,0.1231976]
[1741884034876,0.3203961,81186.0,81185.0,0.1355984]
[1741884035281,0.0981,81186.0,81185.0,0.1355984]
[1741884035483,0.10967397,81192.0,81186.0,0.1231961]
[1741884035689,0.12337937,81187.0,81186.0,0.3308969]
[1741884035887,0.00018477,81187.0,81186.0,0.3308969]
[1741884036189,0.00018477,81187.0,81186.0,0.3808969]
[1741884036381,0.00018477,81187.0,81186.0,0.3308969]
[1741884036786,0.00018477,81187.0,81186.0,0.3608969]
[1741884036986,0.00018477,81187.0,81186.0,0.3308969]
[1741884037287,0.10985874,81187.0,81186.0,0.3808969]
[1741884037488,0.10985874,81187.0,81186.0,0.39453508]
[1741884037693,0.10985874,81187.0,81186.0,0.41428322]
[1741884038175,0.10985874,81187.0,81186.0,0.36428322]
[1741884038377,0.23305334,81187.0,81186.0,0.36428322]
[1741884038574,0.23305334,81187.0,81186.0,0.34453508]
[1741884038774,0.23305334,81187.0,81186.0,0.12643898]
[1741884038981,0.23305334,81187.0,81186.0,0.0124008]
[1741884039186,0.1232067,81179.0,81173.0,0.0616078]
[1741884039383,0.1232067,81179.0,81174.0,0.1232129]
[1741884039580,0.1232067,81179.0,81175.0,0.3146122]
[1741884040189,0.1232067,81179.0,81177.0,0.1232094]
[1741884040382,0.1232067,81179.0,81178.0,0.2237082]
[1741884040588,0.0118247,81181.0,81180.0,0.1232052]
[1741884040790,0.0118247,81181.0,81180.0,0.14294818]
[1741884041092,0.22108027,81187.0,81186.0,0.1231961]
[1741884041290,0.00018477,81187.0,81186.0,0.14293908]
[1741884041590,0.00184832,81204.0,81186.0,0.2735]
[1741884041783,0.23285167,81200.0,81199.0,0.1231763]
[1741884042790,0.33055167,81200.0,81199.0,0.3166763]
[1741884043186,0.33055167,81200.0,81199.0,0.1935]
[1741884043588,0.42045167,81200.0,81191.0,0.00018477]
[1741884043892,0.123187,81192.0,81191.0,0.00018477]
[1741884044692,0.305387,81192.0,81191.0,0.00018477]
[1741884045290,0.31727547,81192.0,81191.0,7e-08]
[1741884045791,0.1232037,81181.0,81180.0,0.01192352]
[1741884045993,0.1232067,81179.0,81178.0,0.0005]
[1741884046387,0.1232067,81179.0,81178.0,0.1237082]
[1741884046588,0.3089067,81179.0,81178.0,0.1237082]
[1741884047293,0.3089067,81179.0,81178.0,0.0005]
[1741884047489,0.01140602,81192.0,81186.0,0.1231961]
[1741884047680,0.1231939,81188.0,81186.0,0.1231961]
[1741884047880,0.09318477,81187.0,81186.0,0.3136961]
[1741884048087,0.21637937,81187.0,81186.0,0.1905]
[1741884048290,0.21637937,81187.0,81181.0,0.0941]
[1741884048291,0.0616002,81184.0,81181.0,0.0941]
[1741884048499,0.0616002,81184.0,81181.0,0.0964]
[1741884048500,0.1232021,81182.0,81181.0,0.0964]
[1741884048894,0.3089021,81182.0,81181.0,0.0964]
[1741884049296,0.3089021,81182.0,81181.0,0.2196037]
[1741884049589,0.093,81182.0,81181.0,0.2196037]
[1741884049786,0.2162021,81182.0,81181.0,0.2196037]
[1741884049989,0.093,81182.0,81181.0,0.2196037]
[1741884050193,0.12337937,81187.0,81186.0,0.1231961]
[1741884050395,0.00018477,81187.0,81186.0,0.1231961]
[1741884050592,0.00018477,81187.0,81186.0,0.4231961]
[1741884050789,0.10967397,81196.0,81186.0,0.3]
[1741884050996,0.23285487,81196.0,81195.0,0.1231824]
[1741884051196,0.21941236,81202.0,81195.0,0.01187916]
[1741884051389,0.12502464,81200.0,81199.0,0.1231763]
[1741884051695,0.12502464,81200.0,81199.0,0.01187916]
[1741884051696,0.12502314,81200.0,81199.0,0.01187916]
[1741884051892,0.12502314,81200.0,81194.0,0.0947]
[1741884051893,0.1231824,81195.0,81194.0,0.0947]
[1741884052197,0.123187,81192.0,81191.0,0.00018477]
[1741884053186,0.1941,81192.0,81178.0,0.0005]
[1741884053384,0.1232067,81179.0,81178.0,0.1237082]
[1741884054001,0.1232067,81179.0,81178.0,0.3106082]
[1741884054292,0.3173067,81179.0,81178.0,0.0005]
[1741884054494,0.4144067,81179.0,81178.0,0.0005]
[1741884055602,0.4144067,81179.0,81178.0,0.1237082]
[1741884055896,0.00018477,81187.0,81186.0,0.1231961]
[1741884056198,0.12337937,81187.0,81186.0,0.1231961]
[1741884056500,0.00018477,81187.0,81186.0,0.1231961]
[1741884056797,0.00018477,81187.0,81186.0,0.2650961]
[1741884057301,0.00018477,81187.0,81186.0,0.2150961]
[1741884058698,0.12337937,81187.0,81186.0,0.2150961]
[1741884059997,0.00018477,81187.0,81179.0,0.1426]
[1741884060200,0.1848038,81182.0,81181.0,0.3145006]
[1741884060405,0.0616017,81182.0,81181.0,0.3145006]
[1741884060700,0.2458017,81182.0,81181.0,0.3145006]
[1741884060893,0.2458017,81182.0,81181.0,0.2159006]
[1741884061093,0.2458017,81182.0,81172.0,0.14264]
[1741884061094,0.1848092,81181.0,81180.0,0.1232037]
[1741884061294,0.0616025,81181.0,81180.0,0.1232037]
[1741884061499,0.0897,81181.0,81180.0,0.1232037]
[1741884062192,0.0992,81186.0,81185.0,0.1231976]
[1741884062494,0.3180961,81186.0,81185.0,0.1231976]
[1741884063302,0.31940047,81186.0,81185.0,0.1231976]
[1741884063798,0.10050437,81186.0,81185.0,0.1231976]
[1741884063999,0.00130437,81186.0,81185.0,0.1231976]
[1741884064298,0.14738781,81187.0,81185.0,0.3455976]
[1741884064491,0.0864599,81187.0,81186.0,0.1231961]
[1741884064693,0.1840038,81194.0,81193.0,0.1231854]
[1741884064893,0.3071877,81194.0,81193.0,0.1231854]
[1741884065099,0.123187,81192.0,81191.0,0.1847816]
[1741884065298,0.0923,81193.0,81177.0,0.01143049]
[1741884065603,0.1232067,81180.0,81179.0,0.1847962]
[1741884066102,0.1232067,81179.0,81178.0,0.0005]
[1741884066406,0.3534519,81179.0,81178.0,0.1237082]
[1741884066596,0.3653628,81179.0,81178.0,0.1237082]
[1741884066791,0.3262176,81179.0,81178.0,0.0005]
[1741884066998,0.36538073,81179.0,81178.0,0.0005]
[1741884067209,0.36538073,81179.0,81178.0,0.1237082]
[1741884067395,0.3262176,81179.0,81178.0,0.0005]
[1741884067903,0.36537572,81179.0,81178.0,0.0005]
[1741884068300,0.1232188,81171.0,81162.0,0.0616161]
[1741884068501,0.1232188,81171.0,81160.0,0.00184809]
[1741884068804,0.1232188,81171.0,81170.0,0.12340517]
[1741884069192,0.0988,81179.0,81173.0,0.0616077]
[1741884069396,0.1232053,81180.0,81176.0,0.1232097]
[1741884069596,0.0934,81184.0,81177.0,0.0616042]
[1741884069801,0.11055882,81185.0,81183.0,0.1232006]
[1741884069999,0.11055882,81185.0,81184.0,0.1231991]
[1741884070398,0.11055882,81185.0,81184.0,0.16483544]
[1741884070594,0.11055882,81185.0,81184.0,0.32823544]
[1741884070998,0.11055882,81185.0,81184.0,0.47823544]
[1741884071195,0.11055882,81185.0,81184.0,0.48823544]
[1741884071894,0.21941236,81185.0,81184.0,0.48823544]
[1741884072693,0.16507762,81192.0,81184.0,0.36503634]
[1741884073003,0.16507762,81192.0,81191.0,0.1231885]
[1741884073194,0.25715771,81214.0,81191.0,0.73184409]
[1741884073395,0.25715771,81214.0,81212.0,0.1231566]
[1741884073589,0.25715771,81214.0,81212.0,0.13500069]
[1741884073898,0.25715771,81214.0,81212.0,0.1831566]
[1741884074101,0.25715771,81214.0,81212.0,0.1231566]
[1741884074299,0.25715771,81214.0,81212.0,0.1331566]
[1741884074998,0.12500319,81213.0,81212.0,0.13500526]
[1741884075201,0.12500319,81213.0,81212.0,0.14500526]
[1741884075394,0.12500319,81213.0,81212.0,0.13500526]
[1741884075594,0.22030319,81213.0,81212.0,0.13500526]
[1741884075794,0.31520319,81213.0,81212.0,0.13500526]
[1741884075995,0.31520319,81213.0,81212.0,0.2118566]
[1741884076197,0.19204809,81213.0,81197.0,0.0615893]
[1741884076499,0.19204809,81213.0,81204.0,0.08888477]
[1741884076500,0.1231672,81205.0,81204.0,0.08888477]
[1741884076698,0.1231672,81205.0,81204.0,0.21205357]
[1741884077099,0.1231672,81205.0,81204.0,0.08888477]
[1741884077305,0.3110672,81205.0,81204.0,0.00018477]
[1741884077501,0.1879,81205.0,81180.0,0.36659149]
[1741884077805,0.1231854,81193.0,81190.0,0.1231896]
[1741884078100,0.1231854,81193.0,81192.0,0.01380443]
[1741884078702,0.3977854,81193.0,81192.0,0.01380443]
[1741884079004,0.3977854,81193.0,81192.0,0.13699143]
[1741884079299,0.00018477,81201.0,81200.0,0.1231748]
[1741884079600,0.17722236,81270.0,81200.0,0.1231748]
[1741884079601,0.18409605,81212.0,81211.0,0.1231581]
[1741884079798,0.30725265,81212.0,81211.0,0.13511518]
[1741884079993,0.27029605,81212.0,81211.0,0.13511518]
[1741884080198,0.27029605,81212.0,81211.0,0.14940999]
[1741884080498,0.18409605,81212.0,81211.0,0.15940999]
[1741884080700,0.18409605,81212.0,81211.0,0.30890999]
[1741884080891,0.18409605,81212.0,81211.0,0.34240999]
[1741884081098,0.18409605,81212.0,81211.0,0.50477474]
[1741884081498,0.18409605,81212.0,81211.0,0.50838802]
[1741884081998,0.18409605,81212.0,81211.0,0.48866327]
[1741884082504,0.30725265,81212.0,81211.0,0.1231581]
[1741884082698,0.18409605,81212.0,81211.0,0.1231581]
[1741884083097,0.18409605,81212.0,81211.0,0.4171581]
[1741884083496,0.2155331,81228.0,81221.0,0.0615708]
[1741884083702,0.2096341,81227.0,81226.0,0.1231354]
[1741884083902,0.3015341,81227.0,81226.0,0.1231354]
[1741884084295,0.1784,81227.0,81226.0,0.1231354]
[1741884084807,0.3015339,81227.0,81226.0,0.1231354]
[1741884085496,0.2096202,81236.0,81235.0,0.1231218]
[1741884085697,0.0865,81236.0,81235.0,0.1231218]
[1741884086110,0.1231324,81228.0,81227.0,0.12331674]
[1741884086602,0.1843,81229.0,81227.0,0.12331674]
[1741884086798,0.091,81229.0,81228.0,0.1231324]
[1741884087003,0.0933,81243.0,81242.0,0.1231112]
[1741884087201,0.2164096,81243.0,81242.0,0.1231112]
[1741884088508,0.3074096,81243.0,81242.0,0.1231112]
[1741884090901,0.1846909,81234.0,81233.0,0.1846749]
[1741884091112,0.1231324,81228.0,81214.0,0.14248]
[1741884091505,0.1231324,81228.0,81222.0,0.1231401]
[1741884091803,0.1376455,81228.0,81217.0,0.01493935]
[1741884092006,0.1376455,81228.0,81222.0,0.1231404]
[1741884092311,0.2313455,81228.0,81227.0,0.12331854]
[1741884092612,0.2313455,81228.0,81227.0,0.00018464]
[1741884092808,0.2313455,81228.0,81227.0,0.12331854]
[1741884093002,0.2313455,81228.0,81227.0,0.00018464]
[1741884094208,0.123146,81219.0,81218.0,0.12499426]
[1741884095296,0.0937,81220.0,81218.0,0.12499426]
[1741884095297,0.0937,81220.0,81219.0,0.123146]
[1741884096115,0.00018424,81227.0,81226.0,0.1231354]
[1741884096899,0.00018424,81227.0,81226.0,0.1531354]
[1741884097113,0.00018424,81227.0,81226.0,0.1231354]
[1741884097707,0.12331814,81227.0,81226.0,0.1231354]
[1741884098100,0.00018424,81227.0,81220.0,0.0615716]
[1741884098309,0.1231445,81220.0,81219.0,0.2736131]
[1741884099108,0.3067445,81220.0,81219.0,0.2736131]
[1741884099310,0.3067445,81220.0,81219.0,0.3967544]
[1741884099511,0.3067445,81220.0,81219.0,0.150472]
[1741884099712,0.3067445,81220.0,81219.0,0.061572]
[1741884099916,0.123146,81219.0,81218.0,0.26747286]
[1741884100412,0.306746,81219.0,81218.0,0.26747286]
[1741884100607,0.306746,81219.0,81218.0,0.12499286]
[1741884101318,0.306746,81219.0,81218.0,0.12499426]
[1741884101918,0.306746,81219.0,81218.0,0.21399426]
[1741884103307,0.214546,81219.0,81218.0,0.21399426]
[1741884104419,0.214546,81219.0,81218.0,0.00184676]
[1741884104619,0.0914,81219.0,81193.0,1.07336]
[1741884104818,0.1231581,81211.0,81191.0,0.0615937]